[Event "18èmeFestival International d’Echecsde Rochefort"]
[Site "Rochefort, France"]
[Date "2019.02.16"]
[Round "1.4"]
[White "POTTIER, Simeon"]
[Black "DEMUTH, Adrien"]
[Result "0-1"]
[TimeControl "1h30 min/40coups + 30 min +  30sec/coup"]
[BlackTitle "GM"]
[WhiteFideId "26069296"]
[BlackFideId "642274"]
[WhiteElo "2123"]
[BlackElo "2519"]

1. d4 {[%clk 01:30:56]} {[%emt 00:00:03]} f5 {[%clk 01:30:49]} {[%emt
00:00:11]} 2. Nc3 {[%clk 01:31:08]} {[%emt 00:00:18]} Nf6 {[%clk 01:31:04]}
{[%emt 00:00:15]} 3. Bg5 {[%clk 01:31:22]} {[%emt 00:00:16]} d5 {[%clk
01:31:21]} {[%emt 00:00:13]} 4. Bxf6 {[%clk 01:31:13]} {[%emt 00:00:39]} exf6
{[%clk 01:31:45]} {[%emt 00:00:06]} 5. e3 {[%clk 01:30:59]} {[%emt 00:00:44]}
Be6 {[%clk 01:32:05]} {[%emt 00:00:10]} 6. Qf3 {[%clk 01:26:34]} {[%emt
00:04:54]} Nc6 {[%clk 01:30:49]} {[%emt 00:01:47]} 7. Bb5 {[%clk 01:19:45]}
{[%emt 00:07:19]} Qd7 {[%clk 01:31:13]} {[%emt 00:00:06]} 8. Nge2 {[%clk
01:18:46]} {[%emt 00:01:29]} g5 {[%clk 01:24:39]} {[%emt 00:07:05]} 9. h4
{[%clk 00:52:02]} {[%emt 00:27:14]} O-O-O {[%clk 01:13:59]} {[%emt 00:11:10]}
10. O-O-O {[%clk 00:49:18]} {[%emt 00:03:13]} Kb8 {[%clk 00:59:24]} {[%emt
00:15:06]} 11. Kb1 {[%clk 00:44:29]} {[%emt 00:05:19]} a6 {[%clk 00:56:47]}
{[%emt 00:03:08]} 12. Bxc6 {[%clk 00:37:09]} {[%emt 00:07:50]} Qxc6 {[%clk
00:57:12]} {[%emt 00:00:05]} 13. g4 {[%clk 00:36:27]} {[%emt 00:01:12]} Qd7
{[%clk 00:53:10]} {[%emt 00:04:32]} 14. gxf5 {[%clk 00:35:22]} {[%emt
00:01:35]} Bxf5 {[%clk 00:53:31]} {[%emt 00:00:09]} 15. Rdg1 {[%clk 00:35:04]}
{[%emt 00:00:47]} Be7 {[%clk 00:44:38]} {[%emt 00:09:24]} 16. Qg2 {[%clk
00:30:21]} {[%emt 00:05:13]} h6 {[%clk 00:37:16]} {[%emt 00:07:52]} 17. hxg5
{[%clk 00:22:52]} {[%emt 00:07:59]} fxg5 {[%clk 00:37:28]} {[%emt 00:00:17]} 18.
Ng3 {[%clk 00:23:06]} {[%emt 00:00:16]} Bg6 {[%clk 00:34:54]} {[%emt 00:03:05]}
19. Nh5 {[%clk 00:18:50]} {[%emt 00:04:45]} Bb4 {[%clk 00:32:45]} {[%emt
00:02:40]} 20. Nf6 {[%clk 00:13:04]} {[%emt 00:06:16]} Qf5 {[%clk 00:23:46]}
{[%emt 00:09:28]} 21. Nfxd5 {[%clk 00:13:18]} {[%emt 00:00:16]} Qxc2+ {[%clk
00:14:59]} {[%emt 00:09:18]} 22. Ka1 {[%clk 00:13:42]} {[%emt 00:00:06]} Ba5
{[%clk 00:13:44]} {[%emt 00:01:44]} 23. Rc1 {[%clk 00:13:03]} {[%emt 00:01:09]}
Qf5 {[%clk 00:12:16]} {[%emt 00:01:59]} 24. Ne7 {[%clk 00:10:12]} {[%emt
00:03:21]} Qe6 {[%clk 00:12:41]} {[%emt 00:00:04]} 25. Nxg6 {[%clk 00:10:17]}
{[%emt 00:00:25]} Qxg6 {[%clk 00:13:10]} {[%emt 00:00:02]} 26. Ne4 {[%clk
00:09:42]} {[%emt 00:01:05]} Bb6 {[%clk 00:12:26]} {[%emt 00:01:14]} 27. Nc5
{[%clk 00:09:29]} {[%emt 00:00:43]} Bxc5 {[%clk 00:12:46]} {[%emt 00:00:10]} 28.
Rxc5 {[%clk 00:09:53]} {[%emt 00:00:06]} Qf6 {[%clk 00:11:28]} {[%emt
00:01:48]} 29. Qg3 {[%clk 00:09:32]} {[%emt 00:00:51]} Rd6 {[%clk 00:11:06]}
{[%emt 00:00:53]} 30. Rhc1 {[%clk 00:08:13]} {[%emt 00:01:49]} Rh7 {[%clk
00:10:35]} {[%emt 00:01:01]} 31. d5 {[%clk 00:05:55]} {[%emt 00:02:48]} Re7
{[%clk 00:05:40]} {[%emt 00:05:25]} 32. f4 {[%clk 00:04:06]} {[%emt 00:02:19]}
gxf4 {[%clk 00:05:12]} {[%emt 00:00:58]} 33. exf4 {[%clk 00:00:44]} {[%emt
00:03:52]} Qd4 {[%clk 00:04:26]} {[%emt 00:01:16]} 34. Qa3 {[%clk 00:00:41]}
{[%emt 00:00:32]} Re3 {[%clk 00:04:02]} {[%emt 00:00:54]} 35. R5c3 {[%clk
00:00:45]} {[%emt 00:00:26]} Rxc3 {[%clk 00:04:19]} {[%emt 00:00:13]} 36. Qxc3
{[%clk 00:01:01]} {[%emt 00:00:14]} Qxc3 {[%clk 00:04:32]} {[%emt 00:00:17]} 37.
Rxc3 {[%clk 00:01:00]} {[%emt 00:00:31]} Rxd5 {[%clk 00:04:58]} {[%emt
00:00:04]} 38. Kb1 {[%clk 00:01:22]} {[%emt 00:00:09]} Kc8 {[%clk 00:04:20]}
{[%emt 00:01:08]} 39. Kc2 {[%clk 00:01:27]} {[%emt 00:00:24]} Kd7 {[%clk
00:04:41]} {[%emt 00:00:10]} 40. Rh3 {[%clk 00:01:39]} {[%emt 00:00:18]} h5
{[%clk 00:04:15]} {[%emt 00:00:56]} 41. Rg3 {[%clk 00:01:28]} {[%emt 00:00:40]}
Ke6 {[%clk 00:23:50]} {[%emt 00:10:55]} 42. Rg7 {[%clk 00:31:28]} {[%emt
00:00:30]} Kf5 {[%clk 00:14:45]} {[%emt 00:09:35]} 43. Rxc7 {[%clk 00:31:13]}
{[%emt 00:00:47]} b6 {[%clk 00:11:09]} {[%emt 00:04:06]} 44. Rf7+ {[%clk
00:30:26]} {[%emt 00:01:16]} Kg4 {[%clk 00:10:07]} {[%emt 00:01:32]} 45. Rf6
{[%clk 00:30:03]} {[%emt 00:00:53]} h4 {[%clk 00:08:38]} {[%emt 00:01:59]} 46.
Rxb6 {[%clk 00:30:14]} {[%emt 00:00:19]} h3 {[%clk 00:08:53]} {[%emt 00:00:15]}
47. Rxa6 {[%clk 00:28:31]} {[%emt 00:02:14]} h2 {[%clk 00:09:02]} {[%emt
00:00:21]} 48. Rg6+ {[%clk 00:28:57]} {[%emt 00:00:04]} Kh4 {[%clk 00:09:24]}
{[%emt 00:00:08]} 0-1

[Event "18èmeFestival International d’Echecsde Rochefort"]
[Site "Rochefort, France"]
[Date "2019.02.16"]
[Round "1.3"]
[White "ZENG, Chongsheng"]
[Black "MALEKI, Nicolas"]
[Result "1-0"]
[TimeControl "1h30 min/40coups + 30 min +  30sec/coup"]
[WhiteTitle "GM"]
[WhiteFideId "8603847"]
[BlackFideId "622133"]
[WhiteElo "2544"]
[BlackElo "2136"]

1. e4 {[%clk 01:30:49]} {[%emt 00:00:06]} c6 {[%clk 01:30:48]} {[%emt
00:00:17]} 2. d4 {[%clk 01:30:58]} {[%emt 00:00:21]} d5 {[%clk 01:31:13]}
{[%emt 00:00:04]} 3. Nd2 {[%clk 01:31:03]} {[%emt 00:00:25]} dxe4 {[%clk
01:31:26]} {[%emt 00:00:18]} 4. Nxe4 {[%clk 01:31:24]} {[%emt 00:00:08]} Bf5
{[%clk 01:31:40]} {[%emt 00:00:16]} 5. Ng3 {[%clk 01:31:49]} {[%emt 00:00:06]}
Bg6 {[%clk 01:32:05]} {[%emt 00:00:05]} 6. h4 {[%clk 01:32:14]} {[%emt
00:00:05]} h6 {[%clk 01:32:27]} {[%emt 00:00:08]} 7. Nf3 {[%clk 01:32:38]}
{[%emt 00:00:06]} Nd7 {[%clk 01:32:50]} {[%emt 00:00:08]} 8. h5 {[%clk
01:32:50]} {[%emt 00:00:17]} Bh7 {[%clk 01:33:16]} {[%emt 00:00:04]} 9. Bd3
{[%clk 01:33:12]} {[%emt 00:00:07]} Bxd3 {[%clk 01:33:41]} {[%emt 00:00:05]} 10.
Qxd3 {[%clk 01:33:39]} {[%emt 00:00:03]} e6 {[%clk 01:33:53]} {[%emt 00:00:18]}
11. Bd2 {[%clk 01:34:05]} {[%emt 00:00:05]} Ngf6 {[%clk 01:34:09]} {[%emt
00:00:14]} 12. O-O-O {[%clk 01:34:29]} {[%emt 00:00:05]} Be7 {[%clk 01:33:51]}
{[%emt 00:00:48]} 13. Kb1 {[%clk 01:34:53]} {[%emt 00:00:07]} O-O {[%clk
01:33:31]} {[%emt 00:00:50]} 14. Ne4 {[%clk 01:35:12]} {[%emt 00:00:11]} Nxe4
{[%clk 01:33:22]} {[%emt 00:00:39]} 15. Qxe4 {[%clk 01:35:35]} {[%emt
00:00:07]} Nf6 {[%clk 01:33:30]} {[%emt 00:00:22]} 16. Qe2 {[%clk 01:36:01]}
{[%emt 00:00:05]} Qd5 {[%clk 01:32:27]} {[%emt 00:01:34]} 17. Be3 {[%clk
01:36:24]} {[%emt 00:00:07]} Rfd8 {[%clk 01:23:45]} {[%emt 00:09:12]} 18. Ne5
{[%clk 01:34:01]} {[%emt 00:02:52]} c5 {[%clk 01:21:48]} {[%emt 00:02:28]} 19.
f3 {[%clk 01:28:50]} {[%emt 00:05:40]} cxd4 {[%clk 01:16:37]} {[%emt 00:05:42]}
20. Bxd4 {[%clk 01:29:15]} {[%emt 00:00:05]} Qa5 {[%clk 01:14:10]} {[%emt
00:02:57]} 21. Rhe1 {[%clk 01:04:34]} {[%emt 00:25:11]} Bb4 {[%clk 00:44:30]}
{[%emt 00:30:11]} 22. c3 {[%clk 01:04:08]} {[%emt 00:00:56]} Bd6 {[%clk
00:43:57]} {[%emt 00:01:03]} 23. g4 {[%clk 00:53:27]} {[%emt 00:11:11]} Bxe5
{[%clk 00:36:26]} {[%emt 00:08:01]} 24. Bxe5 {[%clk 00:52:51]} {[%emt
00:01:06]} Nd7 {[%clk 00:34:53]} {[%emt 00:02:03]} 25. Bd6 {[%clk 00:51:09]}
{[%emt 00:02:10]} Nb6 {[%clk 00:30:13]} {[%emt 00:05:10]} 26. Bb4 {[%clk
00:42:13]} {[%emt 00:09:26]} Qg5 {[%clk 00:22:31]} {[%emt 00:08:13]} 27. c4
{[%clk 00:41:49]} {[%emt 00:00:54]} Rxd1+ {[%clk 00:21:49]} {[%emt 00:01:12]}
28. Rxd1 {[%clk 00:42:07]} {[%emt 00:00:11]} Rd8 {[%clk 00:21:31]} {[%emt
00:00:48]} 29. Rxd8+ {[%clk 00:38:54]} {[%emt 00:03:43]} Qxd8 {[%clk 00:21:58]}
{[%emt 00:00:03]} 30. b3 {[%clk 00:38:42]} {[%emt 00:00:41]} Qd4 {[%clk
00:07:53]} {[%emt 00:14:35]} 31. Ba3 {[%clk 00:32:01]} {[%emt 00:07:11]} Nd7
{[%clk 00:06:55]} {[%emt 00:01:28]} 32. Bb2 {[%clk 00:31:54]} {[%emt 00:00:38]}
Qg1+ {[%clk 00:07:19]} {[%emt 00:00:05]} 33. Kc2 {[%clk 00:32:20]} {[%emt
00:00:03]} Qc5 {[%clk 00:02:31]} {[%emt 00:05:19]} 34. Bc3 {[%clk 00:31:40]}
{[%emt 00:01:10]} Nb8 {[%clk 00:01:52]} {[%emt 00:01:09]} 35. b4 {[%clk
00:29:13]} {[%emt 00:02:58]} Qf8 {[%clk 00:01:13]} {[%emt 00:01:09]} 36. Qe4
{[%clk 00:24:59]} {[%emt 00:04:43]} b6 {[%clk 00:00:49]} {[%emt 00:00:55]} 37.
Qb7 {[%clk 00:25:14]} {[%emt 00:00:15]} a5 {[%clk 00:00:44]} {[%emt 00:00:36]}
38. bxa5 {[%clk 00:23:51]} {[%emt 00:01:52]} bxa5 {[%clk 00:00:56]} {[%emt
00:00:18]} 39. Be5 {[%clk 00:24:07]} {[%emt 00:00:13]} Qc5 {[%clk 00:00:45]}
{[%emt 00:00:42]} 40. Qxb8+ {[%clk 00:24:01]} {[%emt 00:00:37]} Kh7 {[%clk
00:01:12]} {[%emt 00:00:03]} 41. Qb5 {[%clk 00:14:07]} {[%emt 00:10:23]} Qf2+
{[%clk 00:00:45]} {[%emt 00:00:58]} 42. Kb3 {[%clk 00:14:28]} {[%emt 00:00:10]}
Qxf3+ {[%clk 00:26:17]} {[%emt 00:04:58]} 43. Bc3 {[%clk 00:44:41]} {[%emt
00:00:16]} Qd1+ {[%clk 00:26:08]} {[%emt 00:00:40]} 44. Ka3 {[%clk 00:43:42]}
{[%emt 00:01:29]} Qxg4 {[%clk 00:13:12]} {[%emt 00:13:26]} 45. c5 {[%clk
00:43:51]} {[%emt 00:00:20]} Qf3 {[%clk 00:10:24]} {[%emt 00:03:19]} 46. Qc4
{[%clk 00:43:43]} {[%emt 00:00:38]} Qc6 {[%clk 00:10:41]} {[%emt 00:00:13]} 47.
Bxa5 {[%clk 00:43:01]} {[%emt 00:01:13]} f5 {[%clk 00:09:16]} {[%emt 00:01:55]}
48. Bc3 {[%clk 00:43:11]} {[%emt 00:00:19]} f4 {[%clk 00:06:11]} {[%emt
00:03:36]} 49. Qd4 {[%clk 00:43:05]} {[%emt 00:00:36]} Qa6+ {[%clk 00:06:03]}
{[%emt 00:00:39]} 50. Kb3 {[%clk 00:43:19]} {[%emt 00:00:15]} Qb7+ {[%clk
00:06:21]} {[%emt 00:00:12]} 51. Kc2 {[%clk 00:43:05]} {[%emt 00:00:44]} Qg2+
{[%clk 00:05:54]} {[%emt 00:00:57]} 52. Qd2 {[%clk 00:41:56]} {[%emt 00:01:40]}
Qc6 {[%clk 00:04:37]} {[%emt 00:01:47]} 53. Qxf4 {[%clk 00:40:33]} {[%emt
00:01:53]} Qxc5 {[%clk 00:05:00]} {[%emt 00:00:08]} 54. Qf7 {[%clk 00:40:40]}
{[%emt 00:00:22]} e5 {[%clk 00:03:35]} {[%emt 00:01:55]} 55. Qg6+ {[%clk
00:40:08]} {[%emt 00:01:01]} Kh8 {[%clk 00:03:51]} {[%emt 00:00:15]} 56. Qe8+
{[%clk 00:40:32]} {[%emt 00:00:06]} Kh7 {[%clk 00:04:19]} {[%emt 00:00:02]} 57.
Qxe5 {[%clk 00:40:55]} {[%emt 00:00:06]} Qf2+ {[%clk 00:04:35]} {[%emt
00:00:14]} 58. Kb3 {[%clk 00:40:11]} {[%emt 00:01:15]} Qf7+ {[%clk 00:04:34]}
{[%emt 00:00:31]} 59. Kb4 {[%clk 00:40:27]} {[%emt 00:00:14]} Qb7+ {[%clk
00:04:40]} {[%emt 00:00:24]} 60. Kc4 {[%clk 00:39:38]} {[%emt 00:01:19]} Qa6+
{[%clk 00:04:02]} {[%emt 00:01:08]} 61. Kb3 {[%clk 00:38:11]} {[%emt 00:01:57]}
Qb7+ {[%clk 00:04:22]} {[%emt 00:00:10]} 62. Kc2 {[%clk 00:37:37]} {[%emt
00:01:04]} Qg2+ {[%clk 00:04:45]} {[%emt 00:00:08]} 63. Kd3 {[%clk 00:37:18]}
{[%emt 00:00:49]} Qf3+ {[%clk 00:02:19]} {[%emt 00:02:56]} 64. Kd2 {[%clk
00:37:39]} {[%emt 00:00:08]} Qg2+ {[%clk 00:01:48]} {[%emt 00:01:02]} 65. Qe2
{[%clk 00:38:03]} {[%emt 00:00:06]} Qg5+ {[%clk 00:02:10]} {[%emt 00:00:08]} 66.
Kc2 {[%clk 00:38:15]} {[%emt 00:00:18]} g6 {[%clk 00:00:32]} {[%emt 00:02:08]}
67. Qe4 {[%emt 00:01:20]} 1-0

[Event "18èmeFestival International d’Echecsde Rochefort"]
[Site "Rochefort, France"]
[Date "2019.02.16"]
[Round "1.1"]
[White "VAN DEN DOEL, Erik"]
[Black "SPIRIDONOV, Nikola"]
[Result "1-0"]
[TimeControl "1h30 min/40coups + 30 min +  30sec/coup"]
[WhiteTitle "GM"]
[BlackTitle "GM"]
[WhiteFideId "1003720"]
[BlackFideId "2900238"]
[WhiteElo "2611"]
[BlackElo "2139"]

1. d4 {[%clk 01:30:55]} {[%emt 00:00:03]} Nf6 {[%clk 01:26:35]} {[%emt
00:04:26]} 2. Nf3 {[%clk 01:31:14]} {[%emt 00:00:11]} g6 {[%clk 01:26:37]}
{[%emt 00:00:28]} 3. Bg5 {[%emt 00:00:57]} Ne4 {[%clk 01:21:40]} {[%emt
00:04:44]} 4. Bh4 {[%clk 01:23:59]} {[%emt 00:08:01]} Bg7 {[%clk 01:20:04]}
{[%emt 00:02:05]} 5. e3 {[%clk 01:18:12]} {[%emt 00:06:18]} c5 {[%clk
01:06:21]} {[%emt 00:14:12]} 6. c3 {[%clk 01:17:28]} {[%emt 00:01:15]} d5
{[%clk 01:05:30]} {[%emt 00:01:20]} 7. Nbd2 {[%clk 01:13:01]} {[%emt 00:04:58]}
Qb6 {[%clk 00:58:33]} {[%emt 00:07:27]} 8. Nxe4 {[%clk 00:48:44]} {[%emt
00:24:49]} dxe4 {[%emt 00:09:03]} 9. Nd2 {[%emt 00:00:11]} Qxb2 {[%clk
00:39:44]} {[%emt 00:10:03]} 10. Nxe4 {[%clk 00:47:30]} {[%emt 00:01:45]} cxd4
{[%clk 00:39:09]} {[%emt 00:01:04]} 11. cxd4 {[%clk 00:47:42]} {[%emt
00:00:17]} Qb4+ {[%clk 00:28:00]} {[%emt 00:11:37]} 12. Qd2 {[%clk 00:40:30]}
{[%emt 00:07:44]} Nc6 {[%clk 00:22:34]} {[%emt 00:05:55]} 13. Qxb4 {[%clk
00:38:53]} {[%emt 00:02:08]} Nxb4 {[%clk 00:22:37]} {[%emt 00:00:27]} 14. Rb1
{[%clk 00:35:43]} {[%emt 00:03:42]} Bf5 {[%clk 00:12:14]} {[%emt 00:10:51]} 15.
f3 {[%clk 00:30:34]} {[%emt 00:05:40]} Nd5 {[%clk 00:02:56]} {[%emt 00:09:48]}
16. Kd2 {[%clk 00:22:41]} {[%emt 00:08:24]} O-O {[%clk 00:02:57]} {[%emt
00:00:29]} 17. g4 {[%clk 00:22:52]} {[%emt 00:00:18]} Bc8 {[%clk 00:03:00]}
{[%emt 00:00:27]} 18. Bc4 {[%clk 00:22:36]} {[%emt 00:00:46]} e6 {[%clk
00:02:53]} {[%emt 00:00:37]} 19. Bxd5 {[%clk 00:17:12]} {[%emt 00:05:55]} exd5
{[%clk 00:03:21]} {[%emt 00:00:02]} 20. Nd6 {[%clk 00:17:38]} {[%emt 00:00:04]}
f6 {[%clk 00:02:56]} {[%emt 00:00:53]} 21. Nxc8 {[%clk 00:16:09]} {[%emt
00:02:01]} Rfxc8 {[%clk 00:03:14]} {[%emt 00:00:11]} 22. Rxb7 {[%clk 00:16:34]}
{[%emt 00:00:05]} Rc4 {[%clk 00:03:34]} {[%emt 00:00:10]} 23. Rc1 {[%clk
00:16:44]} {[%emt 00:00:20]} Ra4 {[%clk 00:02:30]} {[%emt 00:01:35]} 24. Rc2
{[%clk 00:15:46]} {[%emt 00:01:27]} Re8 {[%clk 00:02:24]} {[%emt 00:00:35]} 25.
Kd3 {[%clk 00:14:57]} {[%emt 00:01:20]} Bh6 {[%clk 00:02:12]} {[%emt 00:00:42]}
26. e4 {[%clk 00:13:04]} {[%emt 00:02:24]} dxe4+ {[%clk 00:02:03]} {[%emt
00:00:38]} 27. fxe4 {[%clk 00:13:30]} {[%emt 00:00:04]} f5 {[%clk 00:01:21]}
{[%emt 00:01:11]} 28. gxf5 {[%clk 00:13:34]} {[%emt 00:00:26]} gxf5 {[%clk
00:01:49]} {[%emt 00:00:02]} 29. e5 {[%clk 00:13:03]} {[%emt 00:01:01]} Ra3+
{[%clk 00:01:58]} {[%emt 00:00:22]} 30. Rb3 {[%clk 00:13:26]} {[%emt 00:00:06]}
Ra6 {[%clk 00:01:42]} {[%emt 00:00:47]} 31. Bf6 {[%clk 00:11:58]} {[%emt
00:01:58]} f4 {[%clk 00:01:49]} {[%emt 00:00:23]} 32. d5 {[%clk 00:09:12]}
{[%emt 00:03:16]} Kf7 {[%clk 00:01:39]} {[%emt 00:00:39]} 33. Rc6 {[%clk
00:07:40]} {[%emt 00:02:03]} Rxc6 {[%clk 00:01:49]} {[%emt 00:00:20]} 34. Rb7+
{[%clk 00:07:50]} {[%emt 00:00:19]} Kg6 {[%clk 00:02:06]} {[%emt 00:00:12]} 35.
dxc6 {[%clk 00:08:18]} {[%emt 00:00:03]} Rc8 {[%clk 00:00:56]} {[%emt
00:01:40]} 36. c7 {[%clk 00:08:43]} {[%emt 00:00:06]} Bg5 {[%clk 00:01:22]}
{[%emt 00:00:02]} 37. Bxg5 {[%clk 00:07:11]} {[%emt 00:02:03]} Kxg5 {[%clk
00:01:47]} {[%emt 00:00:05]} 38. Ke4 {[%clk 00:07:34]} {[%emt 00:00:06]} a5
{[%clk 00:02:00]} {[%emt 00:00:17]} 39. Kd5 {[%clk 00:07:52]} {[%emt 00:00:12]}
f3 {[%clk 00:02:16]} {[%emt 00:00:14]} 40. Kd6 {[%clk 00:08:12]} {[%emt
00:00:11]} 1-0